Workbook

Sheet NOTAS
A21: Hospital General de Especialidades Dr. Mario Tolentino Dipp
A24: Estados Financieros Al 31 de julio del 2025
A30: Julio, 2025
A31: Santo Domingo de Guzmán
A32: República Dominicana
A46: 1. Entidad Económica
A48: El Hospital General de Especialidades Dr. Mario Tolentino Dipp es una institución que ofrece servicios de salud a traves de los Servicios Regionales organizados en Red, de acuerdo a los valores y principios del Modelo de Atención, para contribuir a la salud de las personas, familias y comunidades.
A52: El Hospital General de Especialidades Dr. Mario Tolentino Dipp tiene su domicilio en la Av. Konrad Adenauer, Santo Domingo Norte, Santo Domingo, R.D.
A55: Los principales directores del Hospital General de Especialidades Dr. Mario Tolentino Dipp son los siguientes:
A57: Nombre | C57: Cargo
A59: Miguel A. Guzmán Fermín | C59: Director General
A60: Kelvin Modesto Segura | C60: Director Financiero Administrativo
A61: Veronica pastranos peña | C61: Contador
A63: 2. Base de Presentación
A65: Los estados financieros han sido preparados de conformidad con las Normas Internacionales de Contabilidad del Sector Público (NICSP), adoptadas por el Hospital General de Especialidades Dr. Mario Tolentino Dipp.
A68: El Hospital General de Especialidades Dr. Mario Tolentino Dipp presenta su presupuesto aprobado según la base contable de efectivo y los estados financieros sobre la base de acumulación (o devengado) conforme a las estipulaciones de las Normas Internacionales de Contabilidad del Sector Público: Presentación de Información del Presupuesto en los Estados Financieros (NICSP No. 24).
A73: El presupuesto se aprueba según la base contable de efectivo siguiendo una clasificación de pago por objeto. El presupuesto aprobado cubre el período fiscal que va desde el 1ro. de enero hasta al 31 de diciembre de 2025 y es incluido como información suplementaria en los estados financieros y sus notas.
A80: La emisión y aprobación final de los estados financieros está autorizada por el Director Ejecutivo.
A84: 3. Moneda Funcional y de Representación
A86: Los estados financieros están presentados en pesos dominicanos (RD$) que es la moneda funcional de la Entidad.
A89: 4. Uso de estimados y juicios
A91: La preparación de los Estados Financieros de conformidad con las Normas Internacionales de Contabilidad del Sector público (NICSP) requiere que la administración realice juicios, estimaciones y supuestos que afectan la aplicación de las políticas contables y los montos de los elementos de los estados financieros (activos, pasivos, ingresos y gastos) reportados. Los resultados reales pueden diferir de estas estimaciones.
A97: Las estimaciones y supuestos relevantes son revisados regularmente, los efectos de estas revisiones son reconocidas prospectivamente.
A100: Medición de los valores razonables
A102: La Entidad cuenta con un marco de control establecido en relación con el cálculo de los valores razonables y tiene la responsabilidad general por la supervisión de todas las mediciones significativas de éste, incluyendo los de Nivel 3.
A106: Cuando se mide el valor razonable de un activo o pasivo, el Hospital General de Especialidades Dr. Mario Tolentino Dipp utiliza, siempre que sea posible, precios cotizados en un mercado activo.
A109: Si el mercado para un activo o pasivo no es activo, la Entidad establecerá el valor razonable utilizando una técnica de valoración. Con ésta se busca establecer cuál sería, a la fecha de medición, el precio de una transacción realizada.
A113: Los valores se clasifican en niveles distintos dentro de una jerarquía como sigue:
A115: Nivel 1: Precios cotizados (no-ajustados) en mercados activos para activos o pasivos idénticos
A117: Nivel 2: Datos diferentes de los precios cotizados incluidos en el Nivel 1, que sean observables para el activo o pasivo, ya sea directa (precios) o indirectamente (derivados de los precios).
A120: Nivel 3: Datos para el activo o pasivo que no se basan en datos de mercado observables (variables no observables).
A124: Si las variables usadas para medir el valor razonable de un activo o pasivo pueden clasificarse en niveles distintos de la jerarquía del valor razonable, entonces la medición se clasifica en su totalidad en el mismo nivel de la jerarquía que la variable de nivel más bajo que sea significativa para la medición total.
A128: El Hospital General de Especialidades Dr. Mario Tolentino Dipp reconoce las transferencias entre los niveles de la jerarquía del valor razonable al final del período sobre el que se informa durante el que ocurrió el cambio.
A132: 5. Base de medición
A134: Estos estados financieros han sido preparados sobre la base del costo histórico.
A136: 6. Resumen de políticas contables significativas
A138: Aquí se detalla todo lo relacionado con las principales políticas contables significativas, aplicadas consistentemente a los períodos sobre los que se informa.
A141: Cuentas por cobrar y por pagar
A143: Las cuentas por cobrar serán medidas en el reconocimiento inicial, a la cantidad original de la facturación, si el defecto de la facturación es inmaterial. En caso de que el descuento sea material, las cuentas por cobrar serán medidas al valor razonable.
A147: Los pasivos son reconocidos cuando se ha recibido el bien o servicio que los genera, independiente del momento en el que se realiza el pago.
A150: Los pasivos son dados de baja cuando los compromisos son saldados o expira el compromiso.

Sheet ESF- NS
C7: HOSP. GNRAL DE ESPECIALIDAD DR, MARIO TOLENTINO DIPP
C8: Estado de Situación Financiera
C9: Del ejercicio terminado al 31 de Julio 2025
F13: 2025 | H13: =+[1]BC!G11 -> 2016
A14: Mapeo | C14: Activos
C15: Activos corrientes
A16: 0001 | D16: Efectivo y equivalentes de efectivo (Nota 7) | F16: =[2]Efectivo!C41 -> 16,738,061
A17: 0002 | D17: Inversiones a corto plazo (Nota 8)
A18: 0003 | D18: Porción corriente de documentos por cobrar (Nota 9)
A19: 0004 | D19: Cuenta por cobrar a corto plazo (Notas 8) | F19: ='[2]Cuenta por Cobrar'!B21 -> 15,556,862
A20: 0005 | D20: Inventarios (Nota 9) | F20: =[2]Inventario!B16 -> 74,809,242
A21: 0006 | D21: Pagos anticipados (Nota 12)
A22: 0007 | D22: Otros activos corrientes (Nota 13)
C23: Total activos corrientes | F23: =SUM(F15:F22) -> 107,104,165 | H23: =SUM(H15:H22) -> 0
C25: Activos no corrientes
A26: 0008 | D26: Cuentas por cobrar a largo plazo (Notas 14) | F26: 0
A27: 0009 | D27: Documentos por cobrar (Nota 15)
A28: 0010 | D28: Inversiones a largo plazo (Nota 16)
A29: 0011 | D29: Otros activos financieros (Notas 17)
A30: 0012 | D30: Mobiliarios y equipos neto (Nota 10) | F30: ='[2]Mobiliario Eq. Ofc.'!H26 -> 168,946,923
A31: 0013 | D31: Activos intangibles (Nota 10)
A32: 0014 | D32: Otros activos no financieros (Nota 20)
C33: Total activos no corrientes | F33: =SUM(F26:F32) -> 168,946,923 | H33: =SUM(H26:H32) -> 0
C35: Total activos | F35: =F23+F33 -> 276,051,088 | H35: =SUM(H33,H23) -> 0
C37: Pasivos
C38: Pasivos corrientes
A39: 0015 | D39: Sobregiro bancario (Nota 21)
A40: 0016 | D40: Cuentas por pagar a corto plazo (Nota 11) | F40: ='[2]CXP Corto plazo'!B17 -> 849,414
A41: 0017 | D41: Préstamos a corto plazo (Nota 23)
A42: 0018 | D42: Parte corriente de préstamos a largo plazo (Nota 24)
A43: 0019 | D43: Retenciones y acumulaciones por pagar (Nota 12)
A44: 0020 | D44: Provisiones a corto plazo (Nota 26)
A45: 0021 | D45: Beneficios a empleados a corto plazo (Nota 13)
A46: 0022 | D46: Pensiones (Nota 28)
A47: 0023 | D47: Otros pasivos corrientes (Nota 29)
C48: Total pasivos corrientes | F48: =SUM(F39:F47) -> 849,414 | H48: =SUM(H39:H47) -> 0
C50: Pasivos no corrientes
A51: 0024 | D51: Cuentas por pagar a largo plazo (Nota 14) | F51: ='[2]CXP Largo Plazo'!B16 -> 8,328,905
A52: 0025 | D52: Préstamos a largo plazo (Nota 31)
A53: 0026 | D53: Instrumentos de deuda (Nota 32)
A54: 0027 | D54: Provisiones a largo plazo (Nota 33)
A55: 0028 | D55: Beneficios a empleados a largo plazo (Nota 15)
A56: 0029 | D56: Otros pasivos no corrientes (Nota 35)
C57: Total pasivos no corrientes | F57: =+F51+F55 -> 8,328,905
C58: Total pasivos | F58: =+F48+F57 -> 9,178,319 | H58: =SUM(H48,H57) -> 0
C60: Activos Netos/Patrimonio (Nota 16)
A61: 0030 | D61: Capital | F61: =[2]Patrimonio!B14 -> 266,872,768
A62: 0031 | D62: Reservas
A63: 0032 | D63: Resultados positivos (ahorro) / negativo (desahorro)
A64: 0033 | D64: Resultados acumulados
A65: 0034 | D65: Intereses minoritarios
C66: Total activos netos/patrimonio | F66: =+F61+F63+F64 -> 266,872,768
C68: Total pasivos y activos netos/patrimonio | F68: =+F58+F66 -> 276,051,088 | H68: =+H58+H66 -> 0 | J68: =+F35-F68 -> 0
D77: Licda. Veronica pastranos | F77: Kelvin modesto Segura Herasme
D78: Encargado de Contabilidad | F78: Director Financiero

Sheet EFECTIVO
B6: HOSP. GNRAL DE ESPECIALIDAD DR, MARIO TOLENTINO DIPP
B7: Nota # 7: Efectivo Caja y Bancos
B8: Del ejercicio terminado Al 31 de Julio 2025
B9: (Valores en RD$)
A12: # Cta. | B12: Nombre de cuenta | C12: Monto
B15: Caja Chica | C15: 0
A16: 300105134 | B16: Operaciones Ex PSS
B17: Fondo Salud Ex-PSS | C17: 0
A18: 160-112014 | B18: Servicio Nacional de Salud (Fondos Senasa)
A19: 314-0000776 | B19: Fondo Operativo | C19: 0
A20: 240-020561-7 | B20: Cuenta Nueva Ranchito
A21: 314-00145-4 | B21: Fondos Especiales CDC
A22: 314-0000920-0 | B22: Cuenta VIH | C22: 0
A23: 314-000181-0 | B23: Cuenta Tuberculosis | C23: 0
B24: Venta de Servicios | C24: 16,738,060.62
B25: Cuenta Proyecto FGRSS(BID)
B26: Anticipo Financieros
B27: Cta. Nomina | C27: 0 | F27: 0
B28: Total balance cuentas de bancarias del Reservas | C28: =C18+C22+C23+C24+C25+C26+C15 -> 16,738,060.62
A31: # Cta. | B31: Tesoreria Nacional | C31: Monto
A32: 9995028000 | B32: Fondo de la Direccion Central Servicio Nacional de Salud
A33: 9995028001 | B33: Sud- Cuenta Cuota de Pago Direccion Central Servicio Nacional de Salud
A34: 2110003000 | B34: Cuenta Direccion Central SNS
A35: 9998014000 | B35: Recaudacion Establecimiento de Salud PSS
B36: Cuenta Colectora Recursos Directos PSS | C36: 0
A37: 100198000 | B37: Sud- Cuenta Disponibilidad Direccion Central Servicio Nacional de Salud
A38: 100198001 | B38: Sub-Cuota de Pago Direccion Central Servicio Nacional de Salud
B39: Total balance cuentas de bancarias tesoreria nacional | C39: 0
B41: Total efectivo y equivalentes de efectivo | C41: =+C28+C39 -> 16,738,060.62

Sheet INVETARIO
A6: HOSP. GNRAL DE ESPECIALIDAD DR, MARIO TOLENTINO DIPP
A7: Nota # 9: Inventario
A8: Del ejercicio terminado Al 31 de julio 2025
A12: Descripción | B12: Monto
A13: Inventario de Útiles y Suministro de Oficina | B13: 20,132,774.06
A14: Inventario Medicamentos | B14: 51,517,359.78
A15: Inventario de Material Med. Quirurjicos. | B15: 3,159,108.50
A16: Total Inventario | B16: =B13+B14+B15 -> 74,809,242.34

Sheet INGRESOS
A5: HOSP. GNRAL DE ESPECIALIDAD DR, MARIO TOLENTINO DIPP
A6: Nota 17: Ingresos
A7: Del ejercicio terminado Al 31 de julio 2025
A8: (Valores en RD$)
A11: Ingresos con Contraprestacion de Servicios | B11: Monto
A13: Venta de Servicios | B13: 16,738,060.62
A14: Sub-Total | B14: =SUM(B13) -> 16,738,060.62
A16: Ingresos sin Contraprestacion de Servicios | B16: 0
A17: Otros Ingresos | B17: 0
A18: Operaciones Ex PSS
A19: Fondo Salud Ex-PSS
A20: Fondo Operativo
A21: Cuenta Nueva Ranchito
A22: Fondos Especiales CDC
A23: Cuenta VIH
A24: Cuenta Tuberculosis
A25: Cuenta Proyecto FGRSS(BID) | B25: 0
A26: Anticipo Financieros | B26: 0
A27: Otros Ingresos
A28: Otras Donaciones Corrientes(Medicamentos) | B28: 0
A29: Cuenta Direccion Central SNS
A30: Sud- Cuenta Disponibilidad Direccion Central Servicio Nacional de Salud
A31: Sub-Total | B31: =SUM(B17:B30) -> 0.00
A32: Total | B32: =+B14+B31 -> 16,738,060.62

Sheet C XP CORTO PLAZO
A6: HOSP. GNRAL DE ESPECIALIDAD DR, MARIO TOLENTINO DIPP
A7: Nota # 11: Cuentas por Pagar a Corto Plazo
A8: Del ejercicio terminado Al 31 de Julio 2025
A9: (Valores en RD$)
A13: Detalle | B13: Monto
A14: Fondos en Consignacion a Pagar | B14: 0
A15: Transferencia sector Publico por Pagar | B15: 0
A16: Cuentas por Pagar Suplidores | B16: 849,413.70
A17: Total Cuentas Por Pagar a Corto Plazo | B17: =+B16+B14+B15 -> 849,413.70

Sheet CUENTA POR COBRAR
A5: HOSP. GNRAL DE ESPECIALIDAD DR, MARIO TOLENTINO DIPP
A6: Notas # 8: Cuenta Por Cobrar
A7: Del ejercicio terminado Al 31 de Julio 2025
A8: (Valores en RD$)
A12: Detalle | B12: Monto
A15: Cuentas Por Cobrar Colaboradores
A16: Otras Cuentas Por Cobrar (Retencion IR-3)
A17: Cuentas por Cobrar Hospital Mario Tolentino Dipp
A18: Cuentas por Cobrar Proyecto FGBRSS
A19: Cuentas por Cobrar Ventas de Servicios | B19: 15,556,861.96
A20: Anticipos financieros | B20: 0
A21: Total Cuentas Por Cobrar | B21: =B15+B16+B18+B19+B20+B17 -> 15,556,861.96

Sheet C X P LARGO PLAZO
A6: HOSP. GNRAL DE ESPECIALIDAD DR, MARIO TOLENTINO DIPP
A7: Nota #14: Cuentas por Pagar Largo Plazo
A8: Del ejercicio terminado Al 31 de Julio 2025
A9: (Valores en RD$)
A13: Detalle | B13: Monto
A14: Cuentas por Pagar Largo Plazo | B14: 8,328,905.32
A16: Total Cuentas Por Pagar a Largo Plazo | B16: =SUM(B14:B15) -> 8,328,905
A38: Licda: veronica pastranos peña Kelvin Modesto Segura
A39: Encargado de Contabilidad | B39: Director Financiero

Sheet INGRESO Y EGRESO
A4: HOSP. GNRAL DE ESPECIALIDAD DR, MARIO TOLENTINO DIPP
A5: Nota # 17: Ingreso y Egreso
A6: Del ejercicio terminado Al 30 de Julio 2025
A7: Para el periodo terminado el 30 de mayo de 2025 la composición de los ingresos es como sigue:
A9: Detalle | B9: 2025
A10: Al 31 de enero 2023 y 2022 la composición de los ingresos es como sigue:
A12: Detalle
A14: Ingresos Fondo 100 (Para Serv. Personales) | B14: 36,595,718.77
A15: Ingresos Fondo 100 (Para Serv. Objectales.) | B15: 6,254,655.17
A16: Ingresos por Servicios cafeteria. | B16: 40,000.00
A17: Ingresos por Servicios a extrajero | B17: 107,706.00
A18: Ingresos por Odontologia. | B18: 105,700.00
A19: Ingresos por Servicios ARS | B19: 16,484,654.62
A21: Total Ingresos | B21: =SUM(B14:B20) -> 59,588,434.56
A26: Sueldos, Salarios y beneficios a colaboradores (Nota 12)
A28: La composición de los saldos al 30 de mayo del 2025 es como sigue:
A31: Detalle | B31: 2025
A33: Sueldos Fijos | B33: 36,074,261.35
A34: Sueldo Personal Temporero | B34: 1,522,724.59
A35: Sueldo Personal Retroactivo
A36: Contribuciones a la Seguridad Social | B36: 926,236.68
A38: Contribuciones al Seguro de Riesgo Laboral | B38: 981,100.70
A39: Pensiones y Jubilaciones | B39: =+#REF! -> 
A40: Total sueldos, salarios y beneficios a empleados | B40: =B33+B34+B36+B37+B38 -> 39,504,323.32
A45: Suministro y Materiales para consumo (Nota 13)
A47: Detalle | B47: 2025
A49: pagos a suplidores | B49: 25,116,708.42
A50: Total Suministros y materiales para consumo
A51: Total Egreso | B51: =B40+B50 -> $39,504,323.32
A54: Sueldos, Salarios y beneficios a colaboradores (Nota 12)
A56: Ingreso por servicio de las ARS (Nota 12)
A59: Suministro y Materiales para consumo (Nota 13)
A69: Licda. Veronica pastranos
A70: Encargado de Contabilidad | B70: Kelvin modesto Segura Herasme
B71: Director Financiero
